bitfinex-derivatives/quotes_SOLF0:USTF0_20250413
["timestamp","ask_amount","ask_price","bid_price","bid_amount"]
[1744536439951,6.58229311,130.08,130.06,0.04910243]
[1744536440251,7.6895,130.07,130.06,0.04910243]
[1744536441252,14.27149311,130.08,130.06,0.04910243]
[1744536442753,7.6895,130.07,130.06,0.04910243]
[1744536443152,35.7895,130.07,130.06,0.04910243]
[1744536444250,28.1,130.07,130.06,0.04910243]
[1744536444553,28.1,130.07,130.06,7.73920243]
[1744536445052,7.6886,130.09,130.06,7.73920243]
[1744536445253,35.788,130.1,130.07,7.6895]
[1744536445860,14.27069311,130.09,130.06,7.73890243]
[1744536446055,6.58229311,130.09,130.06,0.04910243]
[1744536446450,14.27119311,130.09,130.06,7.73920243]
[1744536447354,14.27119311,130.09,130.06,0.04910243]
[1744536447355,6.58229311,130.09,130.06,0.04910243]
[1744536447553,6.58229311,130.07,130.06,0.04910243]
[1744536447854,14.27179311,130.07,130.06,0.04910243]
[1744536448047,34.68229311,130.07,130.01,30.1851]
[1744536449053,0.05679744,130.05,130.03,7.7465665]
[1744536449653,0.05679744,130.05,130.04,7.6913]
[1744536449854,0.05679744,130.05,130.03,0.0547665]
[1744536451854,0.05679744,130.05,130.04,7.6913]
[1744536453655,0.05679744,130.05,130.04,14.27359311]
[1744536454051,35.848,130.1,130.07,7.6891]
[1744536454250,6.58229311,130.09,130.04,6.58229311]
[1744536454550,14.27089311,130.09,130.06,7.6898]
[1744536454951,7.6887,130.09,130.06,7.6898]
[1744536455149,7.6887,130.09,130.07,7.6894]
[1744536455454,7.6887,130.09,130.06,0.05300844]
[1744536455655,7.6887,130.09,130.06,7.74270844]
[1744536456558,14.27099311,130.09,130.06,7.74270844]
[1744536457858,7.689,130.08,130.06,7.74270844]
[1744536458156,6.58229311,130.07,130.06,0.05300844]
[1744536458357,34.74229311,130.07,130.06,0.05300844]
[1744536458659,42.43179311,130.07,130.06,0.05300844]
[1744536459956,14.27179311,130.07,130.06,0.05300844]
[1744536461066,6.58229311,130.07,130.06,0.05300844]
[1744536461665,14.27179311,130.07,130.06,0.05300844]
[1744536463066,6.58229311,130.07,130.06,0.05300844]
[1744536463262,28.16,130.08,130.06,0.05300844]
[1744536463461,6.58229311,130.09,130.06,0.05300844]
[1744536463659,7.6884,130.09,130.06,7.74250844]
[1744536465367,7.6892,130.08,130.06,0.05300844]
[1744536465567,6.58229311,130.08,130.06,0.05300844]
[1744536465866,14.27149311,130.08,130.06,0.05300844]
[1744536466365,7.6892,130.08,130.06,0.05300844]
[1744536467568,14.27099311,130.09,130.06,7.74300844]
[1744536468374,42.43019311,130.1,130.07,7.6894]
[1744536468876,42.43019311,130.1,130.07,7.6892]
[1744536470276,42.43019311,130.1,130.08,7.6889]
[1744536471177,42.43019311,130.1,130.07,7.6893]
[1744536472078,42.43019311,130.1,130.08,7.6889]
[1744536472271,28.16,130.1,130.08,7.6889]
[1744536472975,28.16,130.1,130.09,7.6883]
[1744536474476,28.16,130.1,130.08,7.6886]
[1744536474979,28.16,130.1,130.06,2.19040844]
[1744536475276,34.74229311,130.17,130.07,28.16]
[1744536475580,6.58229311,130.15,130.1,6.58229311]
[1744536475774,6.58229311,130.15,130.11,0.05591109]
[1744536475976,28.16,130.17,130.11,0.05591109]
[1744536476275,34.74229311,130.17,130.11,0.05591109]
[1744536476477,34.74229311,130.17,130.11,2.13951109]
[1744536476785,6.58229311,130.15,130.11,2.13951109]
[1744536477073,28.16,130.17,130.11,2.13951109]
[1744536477280,34.74229311,130.17,130.11,2.13951109]
[1744536477971,7.6846,130.16,130.12,7.6862]
[1744536478177,28.16,130.17,130.12,6.58229311]
[1744536478380,35.8439,130.17,130.13,7.6857]
[1744536478673,35.8439,130.17,130.12,6.58229311]
[1744536478876,7.6843,130.16,130.14,0.04953475]
[1744536479075,28.16,130.17,130.14,0.04953475]
[1744536479479,7.684,130.17,130.14,7.73473475]
[1744536479781,6.58229311,130.16,130.14,0.04953475]
[1744536479977,30.3068,130.2,130.14,0.04953475]
[1744536479978,7.684,130.17,130.14,0.04953475]
[1744536480176,6.58229311,130.18,130.14,0.04953475]
[1744536480479,7.6836,130.17,130.14,7.73483475]
[1744536480680,6.58229311,130.18,130.14,0.04953475]
[1744536480989,28.14,130.2,130.18,7.683]
[1744536481275,363.71970256,130.37,130.18,392.72229311]
[1744536481469,363.71970256,130.37,130.27,6.58229311]
[1744536481672,363.71970256,130.37,130.27,34.72229311]
[1744536481873,6.58229311,130.3,130.28,0.04908223]
[1744536482069,619.18451666,130.34,130.28,0.04908223]
[1744536482280,619.18451666,130.34,130.29,6.58229311]
[1744536482482,619.18451666,130.34,130.29,14.25829311]
[1744536482675,619.18451666,130.34,130.28,28.18908223]
[1744536482676,170.79485136,130.33,130.31,6.58229311]
[1744536482876,157.79645136,130.33,130.32,29.5]
[1744536483176,157.79645136,130.33,130.32,37.1748]
[1744536483881,152.58415136,130.33,130.32,37.1748]
[1744536484070,149.46195136,130.33,130.32,37.1748]
[1744536484276,591.04451666,130.34,130.33,7.6742]
[1744536484471,577.94311666,130.34,130.33,14.25649311]
[1744536484778,514.40355941,130.34,130.33,14.25649311]
[1744536485278,14.19094484,130.43,130.32,42.37984484]
[1744536485580,32.18,130.42,130.32,42.37984484]
[1744536485781,32.18,130.42,130.36,0.05653051]
[1744536486580,10.19984484,130.39,130.27,42.35984484]
[1744536486781,10.19984484,130.33,130.23,608.36]
[1744536486983,10.19984484,130.33,130.24,32.16]
[1744536487178,10.19984484,130.31,130.24,32.16]
[1744536487379,10.19984484,130.31,130.3,108.72202449]
[1744536487572,17.87554484,130.31,130.3,89.23102449]
[1744536487882,17.87554484,130.31,130.3,85.98242449]
[1744536488077,10.19984484,130.31,130.29,181.25880038]
[1744536488277,7.6759,130.3,130.29,181.25880038]
[1744536488879,0.05496318,130.32,130.29,188.93880038]
[1744536489181,33.7,130.6,130.31,20.39968968]
[1744536489377,7.6625,130.53,130.4,16.29261797]
[1744536489578,7.6625,130.53,130.46,7.6664]
[1744536489977,33.7,130.54,130.42,2.144]
[1744536490178,1.53151083,130.59,130.48,0.05094831]
[1744536490371,1.53151083,130.59,130.47,49.99261797]
[1744536490578,16.29261797,130.58,130.52,0.05214052]
[1744536490778,33.7,130.57,130.44,49.99261797]
[1744536490981,41.3606,130.57,130.54,0.05657537]
[1744536491177,41.36,130.57,130.49,7.6643]
[1744536491382,33.7,130.57,130.49,7.6643]
[1744536491683,16.29261797,130.54,130.42,2.144]
[1744536491981,35.26,130.53,130.41,35.24]
[1744536492283,51.55261797,130.53,130.42,2.144]
[1744536492482,16.29261797,130.5,130.42,2.144]
[1744536492683,0.05226596,130.47,130.45,0.04847697]
[1744536493283,7.71866596,130.47,130.45,0.04847697]
[1744536493584,0.05226596,130.47,130.45,0.04847697]
[1744536493783,7.71826596,130.47,130.45,0.04847697]
[1744536494084,0.05226596,130.47,130.45,0.04847697]
[1744536495885,7.6665,130.46,130.45,0.04847697]
[1744536496086,0.05226596,130.47,130.39,7.6702]
[1744536496287,16.29261797,130.47,130.39,7.6702]
[1744536496582,7.6676,130.45,130.39,7.6702]
[1744536496880,16.29261797,130.47,130.38,2.0629]
[1744536497087,16.29261797,130.47,130.37,35.24]
[1744536497284,0.05396477,130.44,130.41,0.05006721]
[1744536499088,0.05396477,130.44,130.41,7.71906721]
[1744536499287,0.05396477,130.44,130.41,35.27006721]
[1744536499484,35.22,130.5,130.41,35.27006721]
[1744536499690,2.1471,130.52,130.41,35.22]
[1744536499890,2.1471,130.52,130.42,2.0036]
[1744536500387,2.1471,130.52,130.43,35.22]
[1744536500783,0.04869883,130.49,130.46,0.0508559]
[1744536501183,7.664,130.51,130.46,0.0508559]
[1744536501391,37.3622,130.53,130.46,0.0508559]
[1744536502188,35.22,130.53,130.46,0.0508559]
[1744536502589,51.51261797,130.53,130.46,0.0508559]
[1744536503293,7.6659,130.47,130.46,0.0508559]
[1744536504084,7.6679,130.44,130.39,37.2369]
[1744536504288,35.22,130.48,130.4,7.6696]
[1744536504491,7.6673,130.45,130.4,7.6696]
[1744536504691,35.22,130.48,130.39,37.2369]
[1744536504891,35.22,130.48,130.4,7.67]
[1744536505091,7.71745934,130.45,130.43,0.05612416]
[1744536505394,0.04995934,130.45,130.43,0.05612416]
[1744536506390,7.71745934,130.45,130.43,0.05612416]
[1744536507496,28.3852567,130.48,130.43,0.05612416]
[1744536507895,7.6677,130.44,130.43,0.05612416]
[1744536508392,28.3852567,130.48,130.43,0.05612416]
[1744536509098,16.29261797,130.49,130.43,0.05612416]
[1744536509297,7.6677,130.44,130.43,0.05612416]
[1744536509897,37.3369,130.48,130.43,0.05612416]
[1744536511498,7.6677,130.44,130.43,0.05612416]
[1744536513501,42.8877,130.44,130.43,0.05612416]
[1744536514102,7.6677,130.44,130.43,0.05612416]
[1744536516004,7.6673,130.45,130.43,0.05612416]
[1744536516602,35.22,130.46,130.43,0.05612416]
[1744536516800,35.22,130.49,130.43,0.05612416]
[1744536517403,35.22,130.49,130.45,7.6667]
[1744536517800,7.6654,130.48,130.46,0.0484472]
[1744536518102,10.1508,130.58,130.47,16.29261797]
[1744536518295,16.29261797,130.72,130.51,23.13]
[1744536518501,51.51261797,130.72,130.55,16.29261797]
[1744536518807,16.29261797,130.63,130.49,16.29261797]
[1744536519004,39.4076,130.62,130.49,16.29261797]
[1744536519504,4.1876,130.62,130.49,16.29261797]
[1744536519707,35.2,130.61,130.49,16.29261797]
[1744536519897,4.1876,130.62,130.49,51.49261797]
[1744536520099,0.04970988,130.56,130.55,7.6607]
[1744536520401,35.2,130.6,130.49,51.49261797]
[1744536520605,0.05477535,130.57,130.55,7.6608]
[1744536521007,35.2,130.63,130.55,7.66]
[1744536521208,35.2,130.63,130.58,7.6591]
[1744536521408,35.2,130.63,130.57,16.29261797]
[1744536522008,4.2053,130.65,130.57,16.29261797]
[1744536522202,35.52,130.64,130.59,0.05836518]
[1744536522405,35.52,130.64,130.63,7.6565]
[1744536522605,35.52,130.66,130.63,7.6565]
[1744536523110,607.38,130.67,130.64,7.6559]
[1744536523308,642.9,130.67,130.62,0.04951702]
[1744536523607,642.9,130.67,130.65,7.6553]
[1744536523800,6.0551,130.7,130.6,16.29261797]
[1744536524005,35.52,130.68,130.65,0.05351356]
[1744536524202,35.52,130.68,130.55,55.81041797]
[1744536524397,16.29261797,130.67,130.55,37.478]
[1744536524702,16.29261797,130.67,130.6,7.6582]
[1744536525102,16.29261797,130.67,130.55,37.478]
[1744536525303,0.05031232,130.65,130.62,0.05682265]
[1744536525503,35.52,130.64,130.52,609.2992]
[1744536525709,9.7056,130.63,130.52,609.2992]
[1744536526110,2.079,130.7,130.55,16.29261797]
[1744536526404,2.0487,130.66,130.55,51.81261797]
[1744536526607,0.04943457,130.64,130.61,0.05315358]
[1744536526803,0.04943457,130.64,130.63,7.6565]
[1744536528108,0.04943457,130.64,130.61,0.05315358]
[1744536528706,0.04943457,130.64,130.62,7.6571]
[1744536530313,35.5,130.69,130.61,26.46218849]
[1744536530506,35.5,130.69,130.61,26.40903491]
[1744536530914,35.5,130.69,130.66,7.6544]
[1744536531209,4.1277,130.7,130.61,26.40903491]
[1744536531610,0.05629954,130.67,130.64,0.05320747]
[1744536532412,0.05629954,130.67,130.65,7.6554]
[1744536532608,0.05629954,130.67,130.64,0.05320747]
[1744536533511,0.05629954,130.67,130.64,7.70880747]
[1744536533715,7.71059954,130.67,130.64,0.05320747]
[1744536534310,0.05629954,130.67,130.64,0.05320747]
[1744536535018,0.05629954,130.67,130.64,7.70900747]
[1744536535516,0.05629954,130.67,130.64,0.05320747]
[1744536536111,7.6551,130.66,130.64,0.05320747]
[1744536536413,0.05629954,130.67,130.64,0.05320747]
[1744536536606,7.71079954,130.67,130.64,0.05320747]
[1744536538217,7.71079954,130.67,130.64,7.70900747]
[1744536538413,7.71079954,130.67,130.64,0.05320747]
[1744536538712,0.05629954,130.67,130.64,0.05320747]
[1744536539318,4.07699954,130.67,130.6,7.6582]
[1744536539513,4.0207,130.67,130.6,7.6582]
[1744536539912,7.6565,130.64,130.6,7.6582]
[1744536540314,7.6565,130.63,130.6,7.6582]
[1744536540621,7.71365735,130.63,130.61,0.05564435]
[1744536542723,0.05715735,130.63,130.55,4.1741]
[1744536542925,35.5,130.65,130.55,2.0267]
[1744536543525,35.5,130.65,130.57,7.6599]
[1744536543926,0.05468754,130.62,130.6,0.05688722]
[1744536544524,7.6583,130.61,130.6,0.05688722]
[1744536544925,0.05468754,130.62,130.6,0.05688722]
[1744536546323,7.6577,130.61,130.6,0.05688722]
[1744536547627,7.71208754,130.62,130.6,0.05688722]
[1744536547832,0.05468754,130.62,130.6,0.05688722]
[1744536548128,7.71188754,130.62,130.6,7.71518722]
[1744536548334,0.05468754,130.62,130.6,0.05688722]
[1744536548634,7.6577,130.61,130.6,0.05688722]
[1744536548831,0.05468754,130.62,130.51,18.5512247]
[1744536549032,36.2271,130.61,130.51,4.1608]
[1744536549231,7.6605,130.57,130.54,7.6615]
[1744536549433,1.9555,130.6,130.51,2.0897]
[1744536550028,0.05106871,130.57,130.54,0.05026855]
[1744536550735,0.05106871,130.57,130.55,7.6609]
[1744536551431,0.05106871,130.57,130.54,0.05026855]
[1744536551931,7.6612,130.55,130.54,0.05026855]
[1744536552336,0.05106871,130.57,130.54,0.05026855]
[1744536552535,7.71136871,130.57,130.54,7.71176855]
[1744536553434,0.05106871,130.57,130.54,0.05026855]
[1744536554234,7.6612,130.55,130.54,0.05026855]
[1744536555034,7.6608,130.56,130.54,0.05026855]
[1744536555438,0.05106871,130.57,130.54,0.05026855]
[1744536555633,7.71146871,130.57,130.54,0.05026855]
[1744536555935,0.05106871,130.57,130.54,7.71206855]
[1744536556130,7.71116871,130.57,130.54,7.71206855]
[1744536556338,0.05106871,130.57,130.55,7.6609]
[1744536556727,0.05106871,130.57,130.54,0.05026855]
[1744536557326,7.661,130.56,130.54,0.05026855]
[1744536558232,7.6612,130.55,130.54,0.05026855]
[1744536558834,0.05106871,130.57,130.54,0.05026855]
[1744536559336,7.6606,130.56,130.54,0.05026855]
[1744536560138,0.05106871,130.57,130.54,0.05026855]
[1744536560639,7.6612,130.55,130.54,0.05026855]
[1744536560934,34.25106871,130.57,130.54,0.05026855]
[1744536561739,7.6612,130.55,130.54,0.05026855]
[1744536564937,7.6625,130.53,130.51,7.6632]
[1744536565145,7.6625,130.53,130.49,2.0204]
[1744536565338,7.6625,130.53,130.47,36.3003]
[1744536565537,7.6619,130.54,130.47,38.4425]
[1744536565743,34.2,130.57,130.5,7.6639]
[1744536565944,34.2,130.57,130.47,36.3422]
[1744536566144,0.05367297,130.55,130.52,0.05672181]
[1744536566335,0.05367297,130.55,130.47,7.6657]
[1744536566539,16.2698247,130.56,130.47,7.6657]
[1744536566740,7.6639,130.51,130.47,7.6657]
[1744536567143,7.6642,130.5,130.47,7.6657]
[1744536567443,0.05814688,130.5,130.48,7.665]
[1744536568643,0.05814688,130.5,130.47,0.05425647]
[1744536569644,7.72264688,130.5,130.47,0.05425647]
[1744536569843,0.05814688,130.5,130.47,0.05425647]
[1744536570345,0.05814688,130.5,130.48,7.6653]
[1744536570744,0.05814688,130.5,130.47,0.05425647]
[1744536570936,0.05814688,130.5,130.47,7.71965647]
[1744536571244,0.05814688,130.5,130.47,0.05425647]
[1744536571445,7.72284688,130.5,130.47,7.71985647]
[1744536572447,0.05814688,130.5,130.47,0.05425647]
[1744536572849,0.05814688,130.5,130.49,7.6648]
[1744536573040,34.2,130.55,130.47,34.25425647]
[1744536573252,36.3144,130.58,130.49,16.2698247]
[1744536573545,7.6604,130.57,130.49,16.2698247]
[1744536574149,7.6604,130.57,130.53,7.6621]
[1744536574349,0.05853929,130.54,130.53,7.6621]
[1744536575053,7.6596,130.58,130.55,7.661]
[1744536575442,4.2225,130.63,130.52,16.2698247]
[1744536575745,4.2225,130.67,130.58,16.2698247]
[1744536575951,4.2225,130.67,130.59,34.2]
[1744536576249,0.05328491,130.64,130.61,0.05144005]
[1744536577248,34.2,130.7,130.61,16.32126475]
[1744536577448,3.9874,130.71,130.61,16.2698247]
[1744536578046,3.9874,130.71,130.68,7.6533]
[1744536578251,4.04479382,130.71,130.68,0.05650884]
[1744536578846,0.05739382,130.71,130.68,0.05650884]
[1744536581751,0.05739382,130.71,130.69,7.6526]
[1744536581953,0.05739382,130.71,130.68,0.05650884]
[1744536582154,0.05739382,130.71,130.68,33.71650884]
[1744536582546,0.05739382,130.71,130.7,7.6524]
[1744536582852,0.05739382,130.71,130.68,33.71650884]
[1744536583447,0.05739382,130.71,130.68,0.05650884]
[1744536584149,7.653,130.69,130.68,0.05650884]
[1744536584549,7.6541,130.68,130.64,33.66]
[1744536584948,7.6541,130.68,130.62,2.1022]
[1744536585553,7.6541,130.68,130.64,7.6556]
[1744536585755,0.04853604,130.66,130.64,7.71324373]
[1744536585955,0.04853604,130.66,130.64,0.05764373]
[1744536586248,7.70343604,130.66,130.64,0.05764373]
[1744536586454,0.04853604,130.66,130.64,0.05764373]
[1744536586844,0.04853604,130.66,130.57,1.9931]
[1744536587049,33.66,130.68,130.59,7.6589]
[1744536587856,0.05638559,130.65,130.62,0.05763129]
[1744536588057,7.657,130.63,130.62,0.05763129]
[1744536590153,35.6488,130.64,130.54,3.9641]
[1744536590359,2.0622,130.63,130.54,3.9641]
[1744536590560,2.0622,130.63,130.56,7.6603]
[1744536590760,7.6593,130.59,130.56,7.6603]
[1744536591065,7.6593,130.59,130.55,7.661]
[1744536591360,0.05377629,130.58,130.56,0.05215762]
[1744536591855,0.05377629,130.58,130.56,7.71275762]
[1744536592050,0.05377629,130.58,130.56,0.05215762]
[1744536593263,0.05377629,130.58,130.57,7.6601]
[1744536593660,35.6488,130.64,130.56,0.05215762]
[1744536593959,35.6488,130.64,130.55,16.2698247]
[1744536594365,7.6568,130.63,130.55,16.2698247]
[1744536594764,0.05425746,130.6,130.58,0.05643656]
[1744536595564,0.05425746,130.6,130.58,7.71563656]
[1744536595763,0.05425746,130.6,130.58,0.05643656]
[1744536596061,0.05425746,130.6,130.58,7.71573656]
[1744536596266,0.05425746,130.6,130.58,0.05643656]
[1744536596862,0.05425746,130.6,130.59,7.6589]
[1744536597566,640.12,130.67,130.58,49.98626126]
[1744536597766,640.12,130.67,130.58,49.9298247]
[1744536597963,7.6553,130.66,130.63,7.6563]
[1744536598359,33.66,130.67,130.58,49.9298247]
[1744536598565,0.05739929,130.66,130.63,0.05036597]
[1744536599767,0.05739929,130.66,130.64,7.6556]
[1744536599968,0.05739929,130.66,130.63,0.05036597]
[1744536600270,7.71249929,130.66,130.63,0.05036597]
[1744536600470,0.05739929,130.66,130.63,0.05036597]
[1744536601070,0.05739929,130.66,130.64,7.6556]
[1744536601764,7.71229929,130.66,130.63,0.05036597]
[1744536601971,0.05739929,130.66,130.63,0.05036597]
[1744536602470,7.71259929,130.66,130.63,0.05036597]
[1744536602671,0.05739929,130.66,130.63,0.05036597]
[1744536603972,33.71739929,130.66,130.56,18.2313247]
[1744536604170,1.9937,130.65,130.56,18.2313247]
[1744536604376,1.9937,130.65,130.54,1.971]
[1744536604571,2.1001,130.64,130.54,1.971]
[1744536604769,7.6593,130.59,130.54,1.971]
[1744536605069,0.05143713,130.58,130.54,1.971]
[1744536605270,0.05143713,130.58,130.55,0.05853499]
[1744536605774,7.71093713,130.58,130.55,0.05853499]
[1744536605976,0.05143713,130.58,130.55,0.05853499]
[1744536607375,7.6606,130.56,130.55,0.05853499]
[1744536608375,7.6616,130.55,130.49,33.66]
[1744536608570,34.8384,130.57,130.49,33.66]
[1744536608770,36.9291,130.57,130.49,33.66]
[1744536608976,7.6621,130.54,130.51,7.6632]
[1744536609476,7.71542951,130.54,130.51,7.71156479]
[1744536609875,7.71542951,130.54,130.51,0.04836479]
[1744536609876,7.663,130.52,130.51,0.04836479]
[1744536610076,0.05332951,130.54,130.51,0.04836479]
[1744536611069,7.71542951,130.54,130.51,7.71166479]
[1744536611769,7.71542951,130.54,130.51,0.04836479]
[1744536611970,0.05332951,130.54,130.51,0.04836479]
[1744536612475,7.6627,130.53,130.51,0.04836479]
[1744536612876,0.05332951,130.54,130.51,0.04836479]
[1744536613078,7.663,130.52,130.51,0.04836479]
[1744536613978,7.6642,130.5,130.46,32.82]
[1744536614475,7.6642,130.5,130.47,7.6655]
[1744536614977,7.6648,130.49,130.46,32.82]
[1744536615271,0.05412068,130.5,130.47,0.04916356]
[1744536615477,7.6653,130.48,130.47,0.04916356]
[1744536616478,4.26212068,130.5,130.42,40.5086]
[1744536616670,4.208,130.5,130.41,2.0775]
[1744536617075,7.6679,130.44,130.41,7.6691]
[1744536617575,7.7219646,130.44,130.41,7.72639414]
[1744536617778,7.6684,130.43,130.41,0.05729414]
[1744536618181,0.0540646,130.44,130.41,0.05729414]
[1744536618380,0.0540646,130.44,130.41,7.72639414]
[1744536618781,0.0540646,130.44,130.41,0.05729414]
[1744536619581,7.6686,130.43,130.41,0.05729414]
[1744536619780,0.0540646,130.44,130.41,0.05729414]
[1744536620280,7.6689,130.42,130.41,0.05729414]
[1744536620684,7.6703,130.4,130.36,40.5121]
[1744536620882,2.0281,130.43,130.36,32.84]
[1744536621075,2.0281,130.43,130.36,49.1098247]
[1744536621383,9.6965,130.43,130.39,7.6702]
[1744536621582,2.0281,130.43,130.39,7.6702]
[1744536621785,2.0281,130.43,130.38,7.671]
[1744536622085,2.0281,130.43,130.4,0.0524001]
[1744536622086,0.04984579,130.42,130.4,0.0524001]
[1744536622479,7.71914579,130.42,130.4,0.0524001]
[1744536623884,7.6695,130.41,130.4,0.0524001]
[1744536624183,40.5295,130.41,130.4,0.0524001]
[1744536624783,7.6704,130.4,130.33,49.1298247]
[1744536625184,7.6707,130.39,130.36,7.6719]
[1744536625483,32.86,130.41,130.33,16.2698247]
[1744536625784,0.05871427,130.38,130.36,0.05240881]
[1744536626286,0.05871427,130.38,130.37,7.6715]
[1744536631295,0.05871427,130.38,130.36,7.72450881]
[1744536631490,0.05871427,130.38,130.36,0.05240881]
[1744536631795,7.73041427,130.38,130.36,0.05240881]
[1744536632198,0.05871427,130.38,130.36,0.05240881]
[1744536632992,0.05871427,130.38,130.37,7.6718]
[1744536633392,0.05871427,130.38,130.36,0.05240881]
[1744536633899,0.05871427,130.38,130.37,7.6718]
[1744536634099,0.05871427,130.38,130.36,0.05240881]
[1744536634498,0.05871427,130.38,130.37,7.6718]
[1744536634695,0.05871427,130.38,130.37,17.86839884]
[1744536634896,0.05871427,130.38,130.37,7.6718]
[1744536635098,0.05871427,130.38,130.36,7.72460881]
[1744536635699,0.05871427,130.38,130.37,7.6718]
[1744536637401,0.05871427,130.38,130.37,17.86839884]
[1744536637601,32.86,130.42,130.39,7.6706]
[1744536637800,32.86,130.42,130.35,10.19659884]
[1744536638400,40.5294,130.42,130.35,10.19659884]
[1744536638603,0.04960859,130.4,130.38,7.6709]
[1744536640801,0.04960859,130.4,130.37,7.72473488]
[1744536641001,7.71970859,130.4,130.37,7.72473488]
[1744536641303,0.04960859,130.4,130.37,0.05323488]
[1744536641907,7.6707,130.39,130.37,0.05323488]
[1744536642503,0.04960859,130.4,130.37,0.05323488]
[1744536643006,7.6709,130.39,130.37,0.05323488]
[1744536643302,0.04960859,130.4,130.37,0.05323488]
[1744536643602,0.04960859,130.4,130.38,7.6712]
[1744536643805,0.04960859,130.4,130.37,0.05323488]
[1744536644507,7.671,130.39,130.37,0.05323488]
[1744536645301,0.04960859,130.4,130.37,0.05323488]
[1744536646606,7.71990859,130.4,130.37,7.72473488]
[1744536648809,7.6707,130.39,130.37,0.05323488]
[1744536649007,0.04960859,130.4,130.37,0.05323488]
[1744536649409,7.6712,130.38,130.37,0.05323488]
[1744536650908,7.6726,130.36,130.33,7.6739]
[1744536651310,10.19659884,130.4,130.32,32.86]
[1744536651510,7.673,130.36,130.33,7.6737]
[1744536651710,10.19659884,130.4,130.33,7.6737]
[1744536652208,7.673,130.36,130.35,0.05737418]
[1744536655612,34.1619,130.37,130.3,35.18929799]
[1744536655814,36.2094,130.37,130.3,35.18929799]
[1744536656012,36.2094,130.37,130.3,42.86489799]
[1744536656314,7.6743,130.33,130.3,42.86489799]
[1744536656912,7.72680127,130.33,130.3,35.24027349]
[1744536657312,0.05230127,130.33,130.3,35.24027349]
[1744536657509,7.6749,130.32,130.3,35.24027349]
[1744536657813,0.05230127,130.33,130.3,35.24027349]
[1744536658211,0.05230127,130.33,130.3,0.0509755]
[1744536658411,7.6749,130.32,130.3,0.0509755]
[1744536658613,0.05230127,130.33,130.3,0.0509755]
[1744536658812,0.05230127,130.33,130.31,7.675]
[1744536659117,0.05230127,130.33,130.3,0.0509755]
[1744536659409,7.72680127,130.33,130.3,7.7268755]
[1744536659616,0.05230127,130.33,130.3,0.0509755]
[1744536660315,7.675,130.32,130.3,0.0509755]
[1744536660516,0.05230127,130.33,130.3,0.0509755]
[1744536661015,7.72690127,130.33,130.3,7.7268755]
[1744536661218,0.05230127,130.33,130.3,7.7268755]
[1744536661717,7.72680127,130.33,130.3,7.7268755]
[1744536661917,0.05230127,130.33,130.3,0.0509755]
[1744536662418,7.72680127,130.33,130.3,0.0509755]
[1744536662617,0.05230127,130.33,130.3,0.0509755]
[1744536663015,7.72700127,130.33,130.3,0.0509755]
[1744536663314,7.72700127,130.33,130.3,7.7264755]
[1744536663714,32.13230127,130.33,130.3,0.0509755]
[1744536664220,7.6753,130.32,130.3,0.0509755]
[1744536665214,7.6753,130.31,130.3,0.0509755]
[1744536669315,7.6765,130.3,130.26,38.61545339]
[1744536669520,6.53545339,130.31,130.26,6.53545339]
[1744536669724,6.53545339,130.31,130.24,6.53545339]
[1744536670322,6.53545339,130.29,130.24,6.53545339]
[1744536670521,14.26543114,130.29,130.26,0.05527887]
[1744536670820,6.58853114,130.29,130.26,0.05527887]
[1744536671020,6.58853114,130.29,130.26,7.73347887]
[1744536671221,14.26553114,130.29,130.26,7.73347887]
[1744536671421,45.50553114,130.29,130.26,7.73347887]
[1744536671719,37.82853114,130.29,130.26,7.73347887]
[1744536672021,7.6771,130.28,130.26,0.05527887]
[1744536673218,45.50533114,130.29,130.26,7.73347887]
[1744536673917,7.6772,130.28,130.26,0.05527887]
[1744536674628,7.6777,130.27,130.26,0.05527887]
[1744536675324,14.21315339,130.27,130.26,0.05527887]
[1744536676125,14.21285339,130.28,130.26,0.05527887]
[1744536676325,7.6774,130.28,130.26,0.05527887]
[1744536678027,45.50533114,130.29,130.26,7.73347887]
[1744536678628,31.29307775,130.29,130.27,6.53545339]
[1744536678921,0.05307775,130.29,130.27,6.53545339]
[1744536679521,0.05307775,130.29,130.28,7.6771]
[1744536679727,0.05307775,130.29,130.26,0.05527887]
[1744536680423,0.05307775,130.29,130.27,7.6772]
[1744536682624,6.58853114,130.29,130.26,0.05527887]
[1744536682829,31.24,130.28,130.26,0.05527887]